[Event "World Senior chT-65 2019"]
[Site "Rhodes"]
[Date "2019.04.18"]
[Round "3.35"]
[White "Staechelin, Ruedi"]
[Black "Gustavsson, Sture"]
[Result "1/2-1/2"]
[ECO "B31"]
[WhiteElo "2053"]
[BlackElo "1976"]
[PlyCount "92"]
[EventDate "2019.04.16"]
[EventType "team-tourn"]
[EventCountry "GRE"]
[TimeControl "40/5400+30:1800+30"]

1. e4 {[%emt 0:00:00]} c5 {[%emt 0:00:00]} 2. Nf3 {[%emt 0:00:00]} Nc6 {[%emt 0:00:00]} 3. Bb5 {[%emt 0:00:08]} Nf6 {[%emt 0:00:30]} 4. e5 {[%emt 0:01:43]} Nd5 {[%emt 0:01:04]} 5. O-O {[%emt 0:02:20]} g6 {[%emt 0:03:04]} 6. Re1 {[%emt 0:00:54]} Bg7 {[%emt 0:01:00]} 7. c3 {[%emt 0:00:47]} Nc7 {[%emt 0:02:45]} 8. Bf1 {[%emt 0:00:54]} d5 {[%emt 0:04:49]} 9. d3 {[%emt 0:08:57]} Bg4 {[%emt 0:03:10]} 10. Bf4 {[%emt 0:00:54]} Ne6 {[%emt 0:03:34]} 11. Bg3 {[%emt 0:05:21]} Qb6 {[%emt 0:11:30]} 12. Qb3 {[%emt 0:03:58]} Qxb3 {[%emt 0:05:36]} 13. axb3 {[%emt 0:00:07]} Bxf3 {[%emt 0:00:02]} 14. gxf3 {[%emt 0:00:22]} h5 {[%emt 0:00:09]} 15. h4 {[%emt 0:07:48]} g5 {[%emt 0:07:13]} 16. hxg5 {[%emt 0:09:41]} h4 {[%emt 0:02:01]} 17. Bh2 {[%emt 0:00:33]} Nxg5 {[%emt 0:01:13]} 18. Bg2 {[%emt 0:09:08]} h3 {[%emt 0:03:35]} 19. f4 {[%emt 0:01:14]} hxg2 {[%emt 0:22:07]} 20. fxg5 {[%emt 0:00:16]} Rh3 {[%emt 0:01:35]} 21. Kxg2 {[%emt 0:14:41]} Rxd3 {[%emt 0:00:06]} 22. Ra4 {[%emt 0:02:50]} d4 {[%emt 0:01:54]} 23. f4 {[%emt 0:01:19]} O-O-O {[%emt 0:04:33]} 24. Bg3 {[%emt 0:05:32]} dxc3 {[%emt 0:03:05]} 25. bxc3 {[%emt 0:01:50]} e6 {[%emt 0:03:21]} 26. Rae4 {[%emt 0:02:56]} Ne7 {[%emt 0:01:01]} 27. Bf2 {[%emt 0:01:05]} b6 {[%emt 0:01:07]} 28. b4 {[%emt 0:02:00]} cxb4 {[%emt 0:01:17]} 29. cxb4 {[%emt 0:00:50]} Bf8 {[%emt 0:01:13]} 30. b5 {[%emt 0:04:47]} Kb7 {[%emt 0:00:36]} 31. Rc1 {[%emt 0:01:32]} Nd5 {[%emt 0:01:27]} 32. Rec4 {[%emt 0:01:37]} Rb3 {[%emt 0:06:37]} 33. Nc3 {[%emt 0:01:07]} Nxc3 {[%emt 0:01:17]} 34. R1xc3 {[%emt 0:00:18]} Rxc3 {[%emt 0:00:03]} 35. Rxc3 {[%emt 0:00:14]} Rd5 {[%emt 0:01:14]} 36. Rb3 {[%emt 0:00:39]} Bc5 {[%emt 0:00:49]} 37. Kf3 {[%emt 0:01:18]} Rd2 {[%emt 0:00:56]} 38. Be3 {[%emt 0:00:45]} Rd5 {[%emt 0:00:42]} 39. Ke4 {[%emt 0:00:36]} Rd1 {[%emt 0:00:23]} 40. Kf3 {[%emt 0:00:00]} Bxe3 {[%emt 0:00:00]} 41. Kxe3 {[%emt 0:04:30]} a5 {[%emt 0:03:40]} 42. bxa6+ {[%emt 0:02:01]} Kxa6 {[%emt 0:00:09]} 43. Ra3+ {[%emt 0:00:13]} Kb7 {[%emt 0:03:36]} 44. Rb3 {[%emt 0:01:56]} Kc6 {[%emt 0:04:19]} 45. Rc3+ {[%emt 0:00:09]} Kb7 {[%emt 0:00:42]} 46. Rb3 {[%emt 0:00:33]} Kc6 {[%emt 0:00:06] Kd4 [%emt 00:00:15] Kd5+} 1/2-1/2

[Event "World Senior chT-65 2019"]
[Site "Rhodes"]
[Date "2019.04.18"]
[Round "3.36"]
[White "Andersson, Sven-Olof"]
[Black "Kradolfer, Georg"]
[Result "1-0"]
[ECO "D02"]
[WhiteElo "1904"]
[BlackElo "2048"]
[PlyCount "41"]
[EventDate "2019.04.16"]
[EventType "team-tourn"]
[EventCountry "GRE"]
[TimeControl "40/5400+30:1800+30"]

1. d4 {[%emt 0:00:00]} d5 {[%emt 0:00:00]} 2. Nf3 {[%emt 0:00:00]} Nf6 {[%emt 0:00:00]} 3. g3 {[%emt 0:00:16]} e6 {[%emt 0:01:25]} 4. Bg2 {[%emt 0:00:10]} c5 {[%emt 0:03:09]} 5. e3 {[%emt 0:00:29]} Nc6 {[%emt 0:02:52]} 6. b3 {[%emt 0:02:20]} b6 {[%emt 0:09:08]} 7. O-O {[%emt 0:01:45]} Ba6 {[%emt 0:06:33]} 8. Re1 {[%emt 0:01:16]} Rc8 {[%emt 0:00:30]} 9. Bf1 {[%emt 0:10:45]} Bxf1 {[%emt 0:01:45]} 10. Kxf1 {[%emt 0:00:40]} Ne4 {[%emt 0:05:53]} 11. dxc5 {[%emt 0:12:35]} Qf6 {[%emt 0:02:30]} 12. c3 {[%emt 0:01:33]} Ne5 {[%emt 0:20:05]} 13. Kg2 {[%emt 0:00:49]} Bxc5 {[%emt 0:02:05]} 14. Nxe5 {[%emt 0:06:01]} Qxe5 {[%emt 0:11:12]} 15. Qe2 {[%emt 0:06:44]} O-O {[%emt 0:02:13]} 16. Bb2 {[%emt 0:02:17]} Qf5 {[%emt 0:02:32]} 17. f3 {[%emt 0:07:38]} Nf6 {[%emt 0:04:58]} 18. Nd2 {[%emt 0:18:04]} h5 {[%emt 0:04:12]} 19. e4 {[%emt 0:01:44]} dxe4 {[%emt 0:04:42]} 20. Nxe4 {[%emt 0:00:16]} Qxe4 {[%emt 0:01:03]} 21. fxe4 {[%emt 0:00:15]} 1-0

[Event "World Senior chT-65 2019"]
[Site "Rhodes"]
[Date "2019.04.18"]
[Round "3.37"]
[White "Rantanen, Veikko"]
[Black "Carlsson, Ingvar"]
[Result "1/2-1/2"]
[ECO "B73"]
[WhiteElo "1971"]
[BlackElo "2119"]
[PlyCount "119"]
[EventDate "2019.04.16"]
[EventType "team-tourn"]
[EventCountry "GRE"]
[TimeControl "40/5400+30:1800+30"]

1. e4 {[%emt 4:32:01]} c5 {[%emt 0:00:25]} 2. Nf3 {[%emt 0:00:14]} d6 {[%emt 0:00:09]} 3. d4 {[%emt 0:02:18]} cxd4 {[%emt 0:00:08]} 4. Nxd4 {[%emt 0:00:06]} Nf6 {[%emt 0:00:11]} 5. Nc3 {[%emt 0:00:42]} g6 {[%emt 0:00:10]} 6. Be2 {[%emt 0:01:05]} Bg7 {[%emt 0:00:07]} 7. O-O {[%emt 0:02:56]} O-O {[%emt 0:00:11]} 8. Be3 {[%emt 0:02:30]} Nc6 {[%emt 0:00:08]} 9. Rb1 {[%emt 0:14:41]} d5 {[%emt 0:12:22]} 10. exd5 {[%emt 0:08:37]} Nxd5 {[%emt 0:24:01]} 11. Nxd5 {[%emt 0:02:57]} Qxd5 {[%emt 0:00:12]} 12. Bf3 {[%emt 0:02:56]} Qxa2 {[%emt 0:05:17]} 13. Nxc6 {[%emt 0:00:32]} bxc6 {[%emt 0:00:47]} 14. Bxc6 {[%emt 0:01:02]} Rb8 {[%emt 0:00:43]} 15. Bd5 {[%emt 0:00:30]} Qa6 {[%emt 0:30:00]} 16. Ra1 {[%emt 0:12:22]} Qd6 {[%emt 0:11:45]} 17. Bb3 {[%emt 0:00:20]} Bxb2 {[%emt 0:06:57]} 18. Qxd6 {[%emt 0:00:42]} exd6 {[%emt 0:00:02]} 19. Rxa7 {[%emt 0:00:19]} Bb7 {[%emt 0:01:43]} 20. Rd1 {[%emt 0:01:55]} Rfd8 {[%emt 0:02:15]} 21. f3 {[%emt 0:07:25]} d5 {[%emt 0:00:45]} 22. Bf4 {[%emt 0:00:38]} Bf6 {[%emt 0:02:30]} 23. Bxb8 {[%emt 0:01:16]} Rxb8 {[%emt 0:00:01]} 24. Bxd5 {[%emt 0:04:53]} Bxd5 {[%emt 0:00:06]} 25. Rxd5 {[%emt 0:00:09]} Rb4 {[%emt 0:00:30]} 26. Ra8+ {[%emt 0:01:39]} Kg7 {[%emt 0:00:03]} 27. Rc8 {[%emt 0:00:31]} Rb7 {[%emt 0:00:48]} 28. Kf2 {[%emt 0:01:12]} h5 {[%emt 0:00:36]} 29. g3 {[%emt 0:00:27]} Ra7 {[%emt 0:00:25]} 30. Ke2 {[%emt 0:02:05]} Ba1 {[%emt 0:00:50]} 31. f4 {[%emt 0:07:15]} Bf6 {[%emt 0:00:27]} 32. Rc6 {[%emt 0:03:40]} Re7+ {[%emt 0:00:25]} 33. Kd2 {[%emt 0:00:59]} Rb7 {[%emt 0:00:27]} 34. f5 {[%emt 0:05:55]} g5 {[%emt 0:00:38]} 35. Kd3 {[%emt 0:03:49]} Ra7 {[%emt 0:00:21]} 36. Kc4 {[%emt 0:00:38]} Ra4+ {[%emt 0:01:12]} 37. Kb5 {[%emt 0:01:33]} Re4 {[%emt 0:00:38]} 38. Rc7 {[%emt 0:01:14]} Be5 {[%emt 0:00:43]} 39. Re7 {[%emt 0:00:15]} Kf6 {[%emt 0:00:04]} 40. Rexe5 {[%emt 0:00:42]} Rxe5 {[%emt 0:00:03]} 41. Rxe5 {[%emt 0:00:21]} Kxe5 {[%emt 0:00:07]} 42. c4 {[%emt 0:00:06]} Kxf5 {[%emt 0:03:23]} 43. c5 {[%emt 0:00:09]} Kg4 {[%emt 0:01:58]} 44. c6 {[%emt 0:00:08]} Kh3 {[%emt 0:00:06]} 45. c7 {[%emt 0:00:05]} Kxh2 {[%emt 0:00:04]} 46. c8=Q {[%emt 0:00:11]} Kxg3 {[%emt 0:00:23]} 47. Qf5 {[%emt 0:00:11]} Kh4 {[%emt 0:00:29]} 48. Qxf7 {[%emt 0:00:35]} g4 {[%emt 0:00:10]} 49. Qf6+ {[%emt 0:08:37]} Kh3 {[%emt 0:03:37]} 50. Qf1+ {[%emt 0:01:29]} Kh2 {[%emt 0:03:18]} 51. Qf2+ {[%emt 0:00:27]} Kh3 {[%emt 0:00:19]} 52. Qg1 {[%emt 0:01:07]} g3 {[%emt 0:03:17]} 53. Kc4 {[%emt 0:00:08]} h4 {[%emt 0:00:14]} 54. Kd3 {[%emt 0:00:14]} g2 {[%emt 0:00:53]} 55. Ke3 {[%emt 0:00:13]} Kg3 {[%emt 0:00:21]} 56. Qf2+ {[%emt 0:05:33]} Kh3 {[%emt 0:00:13]} 57. Qg1 {[%emt 0:03:42]} Kg3 {[%emt 0:02:14]} 58. Qe1+ {[%emt 0:09:58]} Kh3 {[%emt 0:00:24]} 59. Kf2 {[%emt 0:01:12]} g1=Q+ {[%emt 0:00:59]} 60. Kxg1 {[%emt 0:00:23]} 1/2-1/2

[Event "World Senior chT-65 2019"]
[Site "Rhodes"]
[Date "2019.04.18"]
[Round "3.38"]
[White "Nordstrom, Felix"]
[Black "Ranki, Martti"]
[Result "1/2-1/2"]
[ECO "B37"]
[WhiteElo "2044"]
[BlackElo "1940"]
[PlyCount "51"]
[EventDate "2019.04.16"]
[EventType "team-tourn"]
[EventCountry "GRE"]
[TimeControl "40/5400+30:1800+30"]

1. e4 {[%emt 0:00:00]} c5 {[%emt 0:00:00]} 2. Nf3 {[%emt 0:00:00]} Nc6 {[%emt 0:00:11]} 3. d4 {[%emt 0:00:10]} cxd4 {[%emt 0:00:20]} 4. Nxd4 {[%emt 0:00:02]} d6 {[%emt 0:00:30]} 5. c4 {[%emt 0:01:59]} Bd7 {[%emt 0:02:01]} 6. Nc3 {[%emt 0:01:42]} Nf6 {[%emt 0:01:09]} 7. Be2 {[%emt 0:02:57]} g6 {[%emt 0:03:37]} 8. Nc2 {[%emt 0:03:26]} Bg7 {[%emt 0:01:06]} 9. O-O {[%emt 0:08:30]} O-O {[%emt 0:00:08]} 10. Bd2 {[%emt 0:04:20]} Re8 {[%emt 0:02:16]} 11. Rc1 {[%emt 0:00:58]} Rc8 {[%emt 0:01:01]} 12. Kh1 {[%emt 0:04:59]} Ne5 {[%emt 0:03:01]} 13. Ne3 {[%emt 0:01:42]} Bc6 {[%emt 0:02:49]} 14. f3 {[%emt 0:03:28]} b6 {[%emt 0:04:41]} 15. b4 {[%emt 0:09:24]} Bb7 {[%emt 0:04:17]} 16. Qb3 {[%emt 0:01:40]} Nc6 {[%emt 0:02:33]} 17. Qb1 {[%emt 0:05:50]} Nd4 {[%emt 0:04:57]} 18. Bd3 {[%emt 0:01:01]} e5 {[%emt 0:08:39]} 19. Ne2 {[%emt 0:03:20]} Ne6 {[%emt 0:02:09]} 20. Nd5 {[%emt 0:03:46]} Nh5 {[%emt 0:04:09]} 21. Rc2 {[%emt 0:05:38]} Qh4 {[%emt 0:04:40]} 22. Qe1 {[%emt 0:01:01]} Qxe1 {[%emt 0:02:21]} 23. Rxe1 {[%emt 0:01:51]} Bxd5 {[%emt 0:01:45]} 24. cxd5 {[%emt 0:02:44]} Nef4 {[%emt 0:00:40]} 25. Nxf4 {[%emt 0:01:08]} Nxf4 {[%emt 0:00:41]} 26. Bxf4 {[%emt 0:04:15]} 1/2-1/2

[Event "World Senior chT-65 2019"]
[Site "Rhodes"]
[Date "2019.04.18"]
[Round "3.39"]
[White "Alkkiomaki, Jyrki"]
[Black "Grahn, Lars"]
[Result "0-1"]
[ECO "B04"]
[WhiteElo "1908"]
[BlackElo "1985"]
[PlyCount "36"]
[EventDate "2019.04.16"]
[EventType "team-tourn"]
[EventCountry "GRE"]
[TimeControl "40/5400+30:1800+30"]

1. e4 {[%emt 0:00:00]} Nf6 {[%emt 0:00:00]} 2. e5 {[%emt 0:00:18]} Nd5 {[%emt 0:00:00]} 3. d4 {[%emt 0:00:17]} d6 {[%emt 0:00:00]} 4. Nf3 {[%emt 0:00:43]} dxe5 {[%emt 0:00:00]} 5. Nxe5 {[%emt 0:00:32]} c6 {[%emt 0:00:09]} 6. c4 {[%emt 0:03:08]} Nf6 {[%emt 0:03:17]} 7. Nc3 {[%emt 0:00:49]} Bf5 {[%emt 0:01:42]} 8. Be3 {[%emt 0:02:51]} e6 {[%emt 0:01:45]} 9. Qb3 {[%emt 0:01:53]} Qc8 {[%emt 0:09:57]} 10. Be2 {[%emt 0:00:59]} Bd6 {[%emt 0:01:33]} 11. O-O {[%emt 0:01:41]} O-O {[%emt 0:00:49]} 12. Nf3 {[%emt 0:05:17]} Qc7 {[%emt 0:07:49]} 13. Rac1 {[%emt 0:00:32]} Nbd7 {[%emt 0:05:59]} 14. g3 {[%emt 0:03:02]} h6 {[%emt 0:09:16]} 15. d5 {[%emt 0:09:18]} Ng4 {[%emt 0:15:11]} 16. Nh4 {[%emt 0:07:57]} Nxe3 {[%emt 0:04:26]} 17. fxe3 {[%emt 0:00:06]} Bh3 {[%emt 0:01:25]} 18. Rf2 {[%emt 0:00:54]} Bxg3 {[%emt 0:03:12]} 0-1

[Event "World Senior chT-65 2019"]
[Site "Rhodes"]
[Date "2019.04.18"]
[Round "3.40"]
[White "Svensson, Soren"]
[Black "Kauko, Pekka"]
[Result "1-0"]
[ECO "E73"]
[WhiteElo "1964"]
[BlackElo "1902"]
[PlyCount "115"]
[EventDate "2019.04.16"]
[EventType "team-tourn"]
[EventCountry "GRE"]
[TimeControl "40/5400+30:1800+30"]

1. d4 {[%emt 0:00:00]} Nf6 {[%emt 0:00:00]} 2. c4 {[%emt 0:00:00]} g6 {[%emt 0:00:05]} 3. Nc3 {[%emt 0:00:11]} Bg7 {[%emt 0:00:51]} 4. e4 {[%emt 0:00:16]} d6 {[%emt 0:00:15]} 5. Be2 {[%emt 0:00:19]} Nbd7 {[%emt 0:00:22]} 6. Bg5 {[%emt 0:00:55]} h6 {[%emt 0:01:20]} 7. Be3 {[%emt 0:00:34]} e5 {[%emt 0:03:17]} 8. d5 {[%emt 0:00:32]} O-O {[%emt 0:08:13]} 9. Qd2 {[%emt 0:02:01]} Nc5 {[%emt 0:01:52]} 10. f3 {[%emt 0:00:27]} Kh7 {[%emt 0:00:41]} 11. g4 {[%emt 0:04:44]} Ng8 {[%emt 0:01:26]} 12. h4 {[%emt 0:01:46]} a6 {[%emt 0:01:50]} 13. O-O-O {[%emt 0:05:42]} Bd7 {[%emt 0:00:35]} 14. Qc2 {[%emt 0:06:14]} b6 {[%emt 0:05:42]} 15. Nh3 {[%emt 0:02:39]} Rb8 {[%emt 0:03:42]} 16. Nf2 {[%emt 0:03:28]} b5 {[%emt 0:00:52]} 17. b4 {[%emt 0:02:22]} Na4 {[%emt 0:00:46]} 18. c5 {[%emt 0:03:25]} c6 {[%emt 0:15:06]} 19. dxc6 {[%emt 0:05:07]} Bxc6 {[%emt 0:02:06]} 20. Rxd6 {[%emt 0:00:26]} Qc7 {[%emt 0:00:34]} 21. Nd5 {[%emt 0:03:21]} Qb7 {[%emt 0:03:31]} 22. Rd1 {[%emt 0:07:59]} Rfd8 {[%emt 0:01:39]} 23. Nc3 {[%emt 0:01:06]} Rxd6 {[%emt 0:00:23]} 24. Rxd6 {[%emt 0:00:33]} Bf8 {[%emt 0:00:46]} 25. Rd1 {[%emt 0:00:48]} a5 {[%emt 0:01:21]} 26. a3 {[%emt 0:01:56]} axb4 {[%emt 0:00:19]} 27. axb4 {[%emt 0:00:14]} Nxc3 {[%emt 0:01:05]} 28. Qxc3 {[%emt 0:00:13]} Ra8 {[%emt 0:00:27]} 29. Nd3 {[%emt 0:04:04]} Bg7 {[%emt 0:00:59]} 30. Nxe5 {[%emt 0:14:32]} Bxe4 {[%emt 0:07:14]} 31. Bd4 {[%emt 0:06:58]} f6 {[%emt 0:00:39]} 32. fxe4 {[%emt 0:05:49]} Qxe4 {[%emt 0:02:46]} 33. Qc2 {[%emt 0:11:19]} Qf4+ {[%emt 0:00:33]} 34. Qd2 {[%emt 0:01:15]} Qxd2+ {[%emt 0:01:44]} 35. Rxd2 {[%emt 0:00:22]} fxe5 {[%emt 0:00:24]} 36. Bc3 {[%emt 0:01:06]} Ra7 {[%emt 0:02:28]} 37. Bxb5 {[%emt 0:01:05]} Nf6 {[%emt 0:03:22]} 38. Bxe5 {[%emt 0:03:51]} Ne4 {[%emt 0:00:18]} 39. Re2 {[%emt 0:00:28]} Nc3 {[%emt 0:01:55]} 40. Bxc3 {[%emt 0:00:00]} Bxc3 {[%emt 0:00:00]} 41. Re4 {[%emt 0:01:00]} Bf6 {[%emt 0:01:30]} 42. h5 {[%emt 0:01:13]} gxh5 {[%emt 0:00:32]} 43. gxh5 {[%emt 0:00:16]} Kg7 {[%emt 0:00:12]} 44. Kc2 {[%emt 0:06:27]} Ra3 {[%emt 0:01:03]} 45. Rc4 {[%emt 0:01:51]} Bd8 {[%emt 0:00:13]} 46. c6 {[%emt 0:02:01]} Bc7 {[%emt 0:01:55]} 47. Rg4+ {[%emt 0:04:52]} Kf7 {[%emt 0:00:47]} 48. Bc4+ {[%emt 0:01:19]} Kf8 {[%emt 0:01:33]} 49. Rg6 {[%emt 0:01:16]} Rh3 {[%emt 0:01:03]} 50. Rxh6 {[%emt 0:02:18]} Ke7 {[%emt 0:00:14]} 51. b5 {[%emt 0:02:08]} Ba5 {[%emt 0:01:23]} 52. Bd3 {[%emt 0:00:00]} Rf3 {[%emt 0:01:18]} 53. Rh7+ {[%emt 0:00:41]} Kd8 {[%emt 0:01:13]} 54. Rd7+ {[%emt 0:00:23]} Kc8 {[%emt 0:00:34]} 55. h6 {[%emt 0:00:13]} Rf2+ {[%emt 0:00:48]} 56. Kb3 {[%emt 0:00:13]} Rh2 {[%emt 0:00:17]} 57. h7 {[%emt 0:00:12]} Rh4 {[%emt 0:00:40]} 58. Rg7 {[%emt 0:02:38]} 1-0

[Event "World Senior chT-65 2019"]
[Site "Rhodes"]
[Date "2019.04.18"]
[Round "3.41"]
[White "Khandsuren, Sandagdorj"]
[Black "Baruch, Andrew J D"]
[Result "1/2-1/2"]
[ECO "B03"]
[WhiteElo "1954"]
[BlackElo "2039"]
[Annotator "NA"]
[PlyCount "28"]
[EventDate "2019.04.16"]
[EventType "team-tourn"]
[EventCountry "GRE"]
[SourceTitle "playchess.com"]
[Source "ChessBase"]
[SourceQuality "1"]
[WhiteTeam "Mongolia"]
[BlackTeam "England"]
[WhiteTeamCountry "MGL"]
[BlackTeamCountry "ENG"]
[TimeControl "40/5400+30:1800+30"]

1. e4 {[%emt 0:00:00]} Nf6 {[%emt 0:00:00]} 2. e5 {[%emt 0:00:45]} Nd5 {[%emt 0:00:00]} 3. d4 {[%emt 0:00:12]} d6 {[%emt 0:00:00]} 4. exd6 {[%emt 0:03:22]} cxd6 {[%emt 0:02:02]} 5. Bb5+ {[%emt 0:02:11]} Bd7 {[%emt 0:03:28]} 6. Bxd7+ {[%emt 0:00:32]} Nxd7 {[%emt 0:08:33]} 7. c4 {[%emt 0:03:33]} N5f6 {[%emt 0:01:14]} 8. Nc3 {[%emt 0:01:02]} e5 {[%emt 0:04:09]} 9. Qe2 {[%emt 0:04:56]} Be7 {[%emt 0:01:00]} 10. Nf3 {[%emt 0:02:43]} exd4 {[%emt 0:01:48]} 11. Nxd4 {[%emt 0:00:17]} O-O {[%emt 0:00:05]} 12. O-O {[%emt 0:00:36]} Re8 {[%emt 0:00:07]} 13. b3 {[%emt 0:04:55]} Qa5 {[%emt 0:03:17]} 14. Bb2 {[%emt 0:03:03]} d5 {[%emt 0:05:34]} 1/2-1/2

[Event "World Senior chT-65 2019"]
[Site "Rhodes"]
[Date "2019.04.18"]
[Round "3.42"]
[White "Reuben, Stewart"]
[Black "Myagmarsuren, Begz"]
[Result "1-0"]
[ECO "D53"]
[WhiteElo "1974"]
[BlackElo "1911"]
[PlyCount "105"]
[EventDate "2019.04.16"]
[EventType "team-tourn"]
[EventCountry "GRE"]
[TimeControl "40/5400+30:1800+30"]

1. d4 {[%emt 0:00:00]} d5 {[%emt 0:00:00]} 2. c4 {[%emt 0:00:00]} Nf6 {[%emt 0:00:00]} 3. cxd5 {[%emt 0:00:57]} Nxd5 {[%emt 0:00:00]} 4. Nc3 {[%emt 0:01:04]} c6 {[%emt 0:01:13]} 5. e4 {[%emt 0:01:01]} Nf6 {[%emt 0:01:10]} 6. Nf3 {[%emt 0:02:40]} e6 {[%emt 0:00:50]} 7. Bg5 {[%emt 0:03:31]} Be7 {[%emt 0:00:51]} 8. Bc4 {[%emt 0:10:48]} O-O {[%emt 0:00:41]} 9. Qd3 {[%emt 0:02:29]} a6 {[%emt 0:02:28]} 10. Bb3 {[%emt 0:01:03]} Nbd7 {[%emt 0:03:55]} 11. Bc2 {[%emt 0:00:30]} g6 {[%emt 0:03:28]} 12. Bh6 {[%emt 0:04:18]} Re8 {[%emt 0:00:46]} 13. h3 {[%emt 0:00:33]} Qc7 {[%emt 0:02:11]} 14. O-O {[%emt 0:04:42]} Nh5 {[%emt 0:01:35]} 15. g4 {[%emt 0:04:34]} Ng7 {[%emt 0:05:37]} 16. Qe3 {[%emt 0:01:56]} Nf6 {[%emt 0:02:13]} 17. Bf4 {[%emt 0:02:10]} Qd8 {[%emt 0:04:12]} 18. Be5 {[%emt 0:17:34]} Nd7 {[%emt 0:04:18]} 19. Bg3 {[%emt 0:03:41]} Nf6 {[%emt 0:02:05]} 20. Qh6 {[%emt 0:01:16]} Bf8 {[%emt 0:06:25]} 21. Qf4 {[%emt 0:03:45]} b5 {[%emt 0:01:54]} 22. Bh4 {[%emt 0:02:13]} Be7 {[%emt 0:00:10]} 23. Ne5 {[%emt 0:01:11]} Bb7 {[%emt 0:02:51]} 24. g5 {[%emt 0:04:41]} Ngh5 {[%emt 0:04:49]} 25. Qf3 {[%emt 0:00:23]} Nd7 {[%emt 0:04:09]} 26. Qxf7+ {[%emt 0:09:08]} Kh8 {[%emt 0:00:14]} 27. Ng4 {[%emt 0:01:05]} Rf8 {[%emt 0:05:27]} 28. Qxe6 {[%emt 0:00:39]} Nf4 {[%emt 0:00:29]} 29. Qb3 {[%emt 0:02:14]} Nxh3+ {[%emt 0:00:15]} 30. Kh2 {[%emt 0:02:40]} Nxg5 {[%emt 0:00:35]} 31. f4 {[%emt 0:02:15]} Nf3+ {[%emt 0:02:02]} 32. Rxf3 {[%emt 0:00:16]} Bxh4 {[%emt 0:00:16]} 33. e5 {[%emt 0:04:45]} Nb6 {[%emt 0:02:15]} 34. Rd1 {[%emt 0:02:25]} Nd5 {[%emt 0:04:24]} 35. Nxd5 {[%emt 0:01:49]} cxd5 {[%emt 0:00:02]} 36. f5 {[%emt 0:00:49]} Bc8 {[%emt 0:02:36]} 37. Ne3 {[%emt 0:01:14]} Bb7 {[%emt 0:06:42]} 38. Rdf1 {[%emt 0:00:30]} g5 {[%emt 0:02:28]} 39. Qd3 {[%emt 0:01:03]} Rc8 {[%emt 0:13:29]} 40. Bb1 {[%emt 0:00:00]} Qe8 {[%emt 0:00:00]} 41. f6 {[%emt 0:04:39]} Qh5 {[%emt 0:06:12]} 42. Qf5 {[%emt 0:06:40]} Rcd8 {[%emt 0:13:04]} 43. e6 {[%emt 0:02:45]} Bc8 {[%emt 0:03:53]} 44. Qe5 {[%emt 0:01:12]} Qh6 {[%emt 0:04:50]} 45. f7+ {[%emt 0:01:00]} Qg7 {[%emt 0:00:10]} 46. e7 {[%emt 0:02:25]} g4 {[%emt 0:02:06]} 47. exd8=Q {[%emt 0:02:11]} Bxd8 {[%emt 0:01:40]} 48. Qxg7+ {[%emt 0:03:14]} Kxg7 {[%emt 0:00:02]} 49. R3f2 {[%emt 0:03:48]} Bc7+ {[%emt 0:02:31]} 50. Kg2 {[%emt 0:00:16]} h5 {[%emt 0:02:52]} 51. Nf5+ {[%emt 0:03:02]} Kh8 {[%emt 0:00:25]} 52. Ne7 {[%emt 0:01:14]} Be6 {[%emt 0:01:24]} 53. Rf6 {[%emt 0:02:01]} 1-0

[Event "World Senior chT-65 2019"]
[Site "Rhodes"]
[Date "2019.04.18"]
[Round "3.43"]
[White "Serjmyadag, Damdin"]
[Black "Valentine, Brian J"]
[Result "0-1"]
[ECO "C54"]
[WhiteElo "1895"]
[BlackElo "1954"]
[PlyCount "73"]
[EventDate "2019.04.16"]
[EventType "team-tourn"]
[EventCountry "GRE"]
[TimeControl "40/5400+30:1800+30"]

1. e4 {[%emt 0:00:00]} e5 {[%emt 0:00:00]} 2. Nf3 {[%emt 0:00:00]} Nc6 {[%emt 0:00:00]} 3. Bc4 {[%emt 0:00:00]} Bc5 {[%emt 0:00:00]} 4. c3 {[%emt 0:00:22]} Nf6 {[%emt 0:00:02]} 5. d3 {[%emt 0:00:21]} d6 {[%emt 0:02:03]} 6. Bg5 {[%emt 0:04:09]} h6 {[%emt 0:00:19]} 7. Bh4 {[%emt 0:00:48]} a6 {[%emt 0:02:39]} 8. h3 {[%emt 0:02:02]} Qe7 {[%emt 0:06:38]} 9. Bb3 {[%emt 0:02:58]} Ba7 {[%emt 0:03:56]} 10. Na3 {[%emt 0:02:36]} Be6 {[%emt 0:04:33]} 11. Bc2 {[%emt 0:02:45]} g5 {[%emt 0:24:01]} 12. Bg3 {[%emt 0:02:59]} O-O-O {[%emt 0:00:46]} 13. Bb3 {[%emt 0:15:17]} Nh5 {[%emt 0:00:25]} 14. Bh2 {[%emt 0:06:07]} Nf4 {[%emt 0:01:29]} 15. Bxe6+ {[%emt 0:02:41]} Qxe6 {[%emt 0:00:27]} 16. Bxf4 {[%emt 0:01:24]} exf4 {[%emt 0:02:13]} 17. Qe2 {[%emt 0:03:25]} f5 {[%emt 0:02:36]} 18. exf5 {[%emt 0:25:15]} Qxf5 {[%emt 0:00:09]} 19. O-O-O {[%emt 0:01:31]} Rhe8 {[%emt 0:07:50]} 20. Qc2 {[%emt 0:00:20]} b5 {[%emt 0:01:21]} 21. d4 {[%emt 0:01:38]} Qf7 {[%emt 0:03:01]} 22. b4 {[%emt 0:02:22]} Re7 {[%emt 0:03:50]} 23. Rhe1 {[%emt 0:00:23]} Rde8 {[%emt 0:02:26]} 24. Rxe7 {[%emt 0:00:12]} Rxe7 {[%emt 0:00:05]} 25. Kb2 {[%emt 0:00:58]} Nb8 {[%emt 0:14:06]} 26. Qd3 {[%emt 0:04:04]} Nc6 {[%emt 0:05:32]} 27. Nd2 {[%emt 0:03:20]} d5 {[%emt 0:01:15]} 28. Nc2 {[%emt 0:01:47]} Kb7 {[%emt 0:00:44]} 29. a4 {[%emt 0:02:41]} bxa4 {[%emt 0:02:07]} 30. Ra1 {[%emt 0:01:26]} Re6 {[%emt 0:01:33]} 31. Rxa4 {[%emt 0:00:46]} Nb8 {[%emt 0:00:40]} 32. Nb3 {[%emt 0:00:28]} Qd7 {[%emt 0:00:31]} 33. Ra5 {[%emt 0:01:50]} Rc6 {[%emt 0:02:00]} 34. b5 {[%emt 0:01:28]} axb5 {[%emt 0:00:24]} 35. Qxb5+ {[%emt 0:01:43]} Bb6 {[%emt 0:01:01]} 36. Nc5+ {[%emt 0:01:24]} Rxc5 {[%emt 0:00:35]} 37. dxc5 {[%emt 0:00:12]} 0-1

[Event "World Senior chT-65 2019"]
[Site "Rhodes"]
[Date "2019.04.18"]
[Round "3.44"]
[White "Thynne, Trefor F"]
[Black "Bujinlkham, Purevdorj"]
[Result "1-0"]
[ECO "D36"]
[WhiteElo "1907"]
[BlackElo "1786"]
[PlyCount "55"]
[EventDate "2019.04.16"]
[EventType "team-tourn"]
[EventCountry "GRE"]
[TimeControl "40/5400+30:1800+30"]

1. d4 {[%emt 0:00:00]} d5 {[%emt 0:00:00]} 2. c4 {[%emt 0:00:00]} e6 {[%emt 0:00:00]} 3. Nc3 {[%emt 0:00:00]} Nf6 {[%emt 0:00:00]} 4. cxd5 {[%emt 0:00:07]} exd5 {[%emt 0:00:43]} 5. Bg5 {[%emt 0:00:07]} Be7 {[%emt 0:00:36]} 6. Bxf6 {[%emt 0:01:18]} Bxf6 {[%emt 0:00:18]} 7. e3 {[%emt 0:00:20]} O-O {[%emt 0:00:39]} 8. Bd3 {[%emt 0:00:30]} c6 {[%emt 0:00:59]} 9. Qc2 {[%emt 0:07:16]} h6 {[%emt 0:05:51]} 10. h3 {[%emt 0:01:22]} g6 {[%emt 0:05:41]} 11. Nf3 {[%emt 0:07:34]} Nd7 {[%emt 0:01:58]} 12. O-O {[%emt 0:04:05]} Bg7 {[%emt 0:01:23]} 13. b4 {[%emt 0:04:57]} a6 {[%emt 0:04:11]} 14. a4 {[%emt 0:01:22]} b6 {[%emt 0:03:50]} 15. b5 {[%emt 0:18:18]} Bb7 {[%emt 0:07:20]} 16. Qb3 {[%emt 0:00:42]} Nf6 {[%emt 0:06:42]} 17. bxc6 {[%emt 0:01:04]} Bxc6 {[%emt 0:01:14]} 18. Ne5 {[%emt 0:00:16]} Qc7 {[%emt 0:04:24]} 19. Rfc1 {[%emt 0:05:23]} Qb7 {[%emt 0:08:11]} 20. Rab1 {[%emt 0:02:54]} Rfb8 {[%emt 0:07:07]} 21. Nxc6 {[%emt 0:05:16]} Qxc6 {[%emt 0:00:00]} 22. Nb5 {[%emt 0:00:17]} Qd7 {[%emt 0:00:00]} 23. Nc7 {[%emt 0:02:34]} Ra7 {[%emt 0:00:04]} 24. Nxa6 {[%emt 0:01:52]} Rba8 {[%emt 0:05:27]} 25. Qxb6 {[%emt 0:06:15]} Kh7 {[%emt 0:10:08]} 26. Bb5 {[%emt 0:04:38]} Qe7 {[%emt 0:18:22]} 27. Nc5 {[%emt 0:04:39]} Ne8 {[%emt 0:06:40]} 28. Bc6 {[%emt 0:01:30]} 1-0